[Event "8th Mersin Open 2024"]
[Site "Mersin"]
[Date "2024.11.11"]
[Round "3"]
[White "Akcay, Batin"]
[Black "Ozturk, Yucel Mert"]
[Result "1/2-1/2"]
[ECO "B01"]
[WhiteElo "1573"]
[BlackElo "1545"]
[Annotator "NA"]
[PlyCount "72"]
[EventDate "2024.11.10"]
[EventType "swiss"]
[EventCountry "TUR"]
[SourceTitle "playchess.com"]
[Source "ChessBase"]
[SourceQuality "1"]
[TimeControl "5400+30"]

1. e4 {[%emt 0:01:00]} d5 {[%emt 0:01:00]} 2. exd5 {[%emt 0:00:30]} Qxd5 {[%emt 0:00:30]} 3. Nc3 {[%emt 0:00:00]} Qd6 {[%emt 0:00:30]} 4. d4 {[%emt 0:00:00]} c6 {[%emt 0:00:00]} 5. g3 {[%emt 0:00:00]} Nf6 {[%emt 0:00:00]} 6. Bg2 {[%emt 0:00:00]} Bf5 {[%emt 0:00:30]} 7. Nf3 {[%emt 0:00:30]} e6 {[%emt 0:01:30]} 8. O-O {[%emt 0:00:30]} Qc7 {[%emt 0:01:30]} 9. Ne5 {[%emt 0:01:30]} Nbd7 {[%emt 0:01:30]} 10. f4 {[%emt 0:00:30]} Be7 {[%emt 0:03:30]} 11. Be3 {[%emt 0:02:30]} O-O {[%emt 0:02:30]} 12. Qe2 {[%emt 0:03:30]} Nb6 {[%emt 0:02:30]} 13. Bf2 {[%emt 0:04:30]} Nbd5 {[%emt 0:04:30]} 14. Nxd5 {[%emt 0:01:30]} exd5 {[%emt 0:00:30]} 15. c3 {[%emt 0:01:30]} Rfe8 {[%emt 0:03:30]} 16. g4 {[%emt 0:03:30]} Be4 {[%emt 0:01:30]} 17. Bg3 {[%emt 0:00:30]} Bxg2 {[%emt 0:02:30]} 18. Qxg2 {[%emt 0:00:00]} Ne4 {[%emt 0:00:30]} 19. g5 {[%emt 0:01:00]} c5 {[%emt 0:07:30]} 20. Bf2 {[%emt 0:02:30]} Rac8 {[%emt 0:08:30]} 21. Qg4 {[%emt 0:01:30]} Nxf2 {[%emt 0:06:30]} 22. Rxf2 {[%emt 0:00:30]} cxd4 {[%emt 0:00:30]} 23. cxd4 {[%emt 0:00:30]} Qb6 {[%emt 0:00:30]} 24. Rd1 {[%emt 0:00:00]} Bd6 {[%emt 0:01:30]} 25. Qf5 {[%emt 0:00:00]} Bxe5 {[%emt 0:00:30]} 26. fxe5 {[%emt 0:00:30]} Qe6 {[%emt 0:01:30]} 27. Qf3 {[%emt 0:00:30]} Rc7 {[%emt 0:01:30]} 28. Qg2 {[%emt 0:00:30]} Rec8 {[%emt 0:10:30]} 29. Rdf1 {[%emt 0:00:30]} Rc1 {[%emt 0:01:30]} 30. h4 {[%emt 0:01:30]} R8c4 {[%emt 0:01:30]} 31. Rxc1 {[%emt 0:02:30]} Rxc1+ {[%emt 0:00:30]} 32. Kh2 {[%emt 0:21:30]} Rc4 {[%emt 0:29:23]} 33. Rd2 {[%emt 0:00:30]} Kf8 {[%emt 0:00:30]} 34. Qf3 {[%emt 0:00:30]} Kg8 {[%emt 0:00:30]} 35. b3 {[%emt 0:00:30]} Rc1 {[%emt 0:00:30]} 36. Rf2 {[%emt 0:00:30]} Rc7 {[%emt 0:00:30]} 1/2-1/2

[Event "8th Mersin Open 2024"]
[Site "Mersin"]
[Date "2024.11.11"]
[Round "3"]
[White "Bulut, Bekir Kaan"]
[Black "Karatiken, Beray"]
[Result "0-1"]
[ECO "A45"]
[WhiteElo "1540"]
[BlackElo "1594"]
[Annotator "NA RC"]
[PlyCount "65"]
[EventDate "2024.11.10"]
[EventType "swiss"]
[EventCountry "TUR"]
[SourceTitle "playchess.com"]
[Source "ChessBase"]
[SourceQuality "1"]
[TimeControl "5400+30"]

1. d4 {[%emt 0:01:00]} d6 {[%emt 0:01:00]} 2. e3 {[%emt 0:00:30]} Nf6 {[%emt 0:00:00]} 3. Bd3 {[%emt 0:00:30]} Nbd7 {[%emt 0:01:00]} 4. f4 {[%emt 0:00:00]} g6 {[%emt 0:00:30]} 5. Nf3 {[%emt 0:00:00]} Bg7 {[%emt 0:00:30]} 6. O-O {[%emt 0:00:30]} c5 {[%emt 0:02:30]} 7. c3 {[%emt 0:00:30]} b6 {[%emt 0:01:30]} 8. Nbd2 {[%emt 0:01:30]} Bb7 {[%emt 0:01:30]} 9. Qe2 {[%emt 0:01:30]} Qc7 {[%emt 0:03:30]} 10. e4 {[%emt 0:02:30]} O-O {[%emt 0:06:30]} 11. e5 {[%emt 0:05:30]} Nd5 {[%emt 0:00:30]} 12. Ng5 {[%emt 0:00:30]} e6 {[%emt 0:06:30]} 13. Nde4 {[%emt 0:02:30]} dxe5 {[%emt 0:01:30]} 14. fxe5 {[%emt 0:00:30]} h6 {[%emt 0:03:30]} 15. Nf3 {[%emt 0:02:30]} cxd4 {[%emt 0:03:30]} 16. cxd4 {[%emt 0:00:00]} Nb4 {[%emt 0:00:30]} 17. Bd2 {[%emt 0:00:00]} Nxd3 {[%emt 0:00:30]} 18. Qxd3 {[%emt 0:00:30]} Bxe4 {[%emt 0:03:30]} 19. Qxe4 {[%emt 0:00:00]} Rac8 {[%emt 0:00:00]} 20. Rac1 {[%emt 0:01:00]} Qb8 {[%emt 0:01:00]} 21. Qh4 {[%emt 0:00:30]} Rxc1 {[%emt 0:05:30]} 22. Bxc1 {[%emt 0:00:30]} Qd8 {[%emt 0:01:30]} 23. Qh3 {[%emt 0:00:30]} g5 {[%emt 0:01:30]} 24. Qh5 {[%emt 0:00:30]} f6 {[%emt 0:00:30]} 25. Qh3 {[%emt 0:03:30]} Qe7 {[%emt 0:06:30]} 26. Re1 {[%emt 0:00:30]} fxe5 {[%emt 0:00:30]} 27. dxe5 {[%emt 0:00:30]} Qf7 {[%emt 0:06:30]} 28. Rf1 {[%emt 0:03:30]} Nxe5 {[%emt 0:03:30]} 29. Nd2 {[%emt 0:00:30]} Qd7 {[%emt 0:00:00]} 30. Rxf8+ {[%emt 0:00:30]} Bxf8 {[%emt 0:00:00]} 31. Nf1 {[%emt 0:00:30]} Bc5+ {[%emt 0:01:30]} 32. Be3 {[%emt 0:00:30]} Bxe3+ {[%emt 0:02:30]} 33. Qxe3 {[%emt 0:00:30]} 0-1

[Event "8th Mersin Open 2024"]
[Site "Mersin"]
[Date "2024.11.11"]
[Round "3"]
[White "Alim, Mehmet Emir"]
[Black "Ulgez, Selin"]
[Result "0-1"]
[ECO "B26"]
[WhiteElo "1532"]
[BlackElo "1569"]
[Annotator "NA"]
[PlyCount "98"]
[EventDate "2024.11.10"]
[EventType "swiss"]
[EventCountry "TUR"]
[SourceTitle "playchess.com"]
[Source "ChessBase"]
[SourceQuality "1"]
[TimeControl "5400+30"]

1. e4 {[%emt 0:01:00]} c5 {[%emt 0:01:00]} 2. Nc3 {[%emt 0:00:00]} g6 {[%emt 0:00:30]} 3. g3 {[%emt 0:00:00]} Bg7 {[%emt 0:00:00]} 4. Bg2 {[%emt 0:00:30]} Nc6 {[%emt 0:00:00]} 5. d3 {[%emt 0:00:00]} d6 {[%emt 0:00:00]} 6. Nge2 {[%emt 0:00:00]} e6 {[%emt 0:00:00]} 7. O-O {[%emt 0:00:00]} Nge7 {[%emt 0:00:30]} 8. Be3 {[%emt 0:00:00]} O-O {[%emt 0:00:00]} 9. d4 {[%emt 0:00:30]} b6 {[%emt 0:03:00]} 10. f4 {[%emt 0:01:30]} Bb7 {[%emt 0:03:30]} 11. Qd2 {[%emt 0:02:30]} Qc7 {[%emt 0:03:30]} 12. dxc5 {[%emt 0:00:30]} dxc5 {[%emt 0:01:30]} 13. Nb5 {[%emt 0:00:00]} Qd8 {[%emt 0:03:30]} 14. Qc1 {[%emt 0:03:00]} a6 {[%emt 0:01:30]} 15. Rd1 {[%emt 0:00:30]} Qb8 {[%emt 0:01:30]} 16. Nd6 {[%emt 0:00:30]} Rd8 {[%emt 0:00:30]} 17. e5 {[%emt 0:00:30]} Nf5 {[%emt 0:01:30]} 18. Nxf5 {[%emt 0:00:30]} exf5 {[%emt 0:00:30]} 19. c3 {[%emt 0:00:00]} Qc7 {[%emt 0:01:30]} 20. Qc2 {[%emt 0:00:00]} Ne7 {[%emt 0:04:30]} 21. Rxd8+ {[%emt 0:02:30]} Rxd8 {[%emt 0:01:30]} 22. Rd1 {[%emt 0:01:30]} Bxg2 {[%emt 0:00:30]} 23. Kxg2 {[%emt 0:00:00]} Qc6+ {[%emt 0:04:30]} 24. Kf2 {[%emt 0:00:00]} Rxd1 {[%emt 0:00:00]} 25. Qxd1 {[%emt 0:00:00]} Qd5 {[%emt 0:02:00]} 26. Qa4 {[%emt 0:01:00]} Qh1 {[%emt 0:00:30]} 27. Qxa6 {[%emt 0:00:30]} Qxh2+ {[%emt 0:00:30]} 28. Ke1 {[%emt 0:00:30]} Qh1+ {[%emt 0:00:30]} 29. Kd2 {[%emt 0:00:00]} Qd5+ {[%emt 0:00:30]} 30. Ke1 {[%emt 0:00:00]} Qh1+ {[%emt 0:02:30]} 31. Bg1 {[%emt 0:00:30]} Qc6 {[%emt 0:00:00]} 32. a4 {[%emt 0:00:30]} Nd5 {[%emt 0:02:00]} 33. a5 {[%emt 0:00:30]} h6 {[%emt 0:02:30]} 34. axb6 {[%emt 0:00:30]} Nxb6 {[%emt 0:00:30]} 35. b4 {[%emt 0:00:30]} Bf8 {[%emt 0:01:30]} 36. Qa5 {[%emt 0:01:30]} Nc4 {[%emt 0:00:30]} 37. Qd8 {[%emt 0:00:30]} cxb4 {[%emt 0:00:30]} 38. cxb4 {[%emt 0:00:30]} Kg7 {[%emt 0:01:30]} 39. b5 {[%emt 0:02:30]} Bb4+ {[%emt 0:01:30]} 40. Kf2 {[%emt 0:02:30]} Qxb5 {[%emt 0:03:30]} 41. Qf6+ {[%emt 0:00:30]} Kg8 {[%emt 0:00:30]} 42. e6 {[%emt 0:02:30]} Bc5+ {[%emt 0:01:30]} 43. Kg2 {[%emt 0:00:30]} Qc6+ {[%emt 0:00:00]} 44. Kh3 {[%emt 0:00:30]} Qh1+ {[%emt 0:02:00]} 45. Bh2 {[%emt 0:00:30]} Qb7 {[%emt 0:04:30]} 46. Qd8+ {[%emt 0:00:30]} Kg7 {[%emt 0:00:30]} 47. Qd3 {[%emt 0:00:30]} Ne3 {[%emt 0:00:30]} 48. Qc3+ {[%emt 0:06:30]} Kh7 {[%emt 0:00:30]} 49. Kh4 {[%emt 0:00:30]} Be7+ {[%emt 0:00:30]} 0-1

[Event "8th Mersin Open 2024"]
[Site "Mersin"]
[Date "2024.11.11"]
[Round "3"]
[White "Ari, Yigitcan"]
[Black "Yuksel, Ali Doruk"]
[Result "1-0"]
[ECO "B22"]
[WhiteElo "1520"]
[BlackElo "1582"]
[Annotator "NA RC"]
[PlyCount "77"]
[EventDate "2024.11.10"]
[EventType "swiss"]
[EventCountry "TUR"]
[SourceTitle "playchess.com"]
[Source "ChessBase"]
[SourceQuality "1"]
[TimeControl "5400+30"]

1. e4 {[%emt 0:01:00]} c5 {[%emt 0:01:00]} 2. c3 {[%emt 0:00:30]} d5 {[%emt 0:00:30]} 3. exd5 {[%emt 0:00:30]} Qxd5 {[%emt 0:00:00]} 4. d4 {[%emt 0:00:00]} Nc6 {[%emt 0:00:00]} 5. Nf3 {[%emt 0:00:00]} Nf6 {[%emt 0:00:00]} 6. Be3 {[%emt 0:00:00]} cxd4 {[%emt 0:00:00]} 7. cxd4 {[%emt 0:00:00]} e6 {[%emt 0:00:30]} 8. Nc3 {[%emt 0:01:30]} Qd6 {[%emt 0:00:00]} 9. Bb5 {[%emt 0:00:30]} Be7 {[%emt 0:02:00]} 10. O-O {[%emt 0:03:30]} O-O {[%emt 0:01:30]} 11. Qd2 {[%emt 0:00:30]} Nb4 {[%emt 0:02:30]} 12. Bf4 {[%emt 0:03:30]} Qd8 {[%emt 0:01:30]} 13. Rac1 {[%emt 0:00:30]} a6 {[%emt 0:01:30]} 14. Ba4 {[%emt 0:01:30]} b5 {[%emt 0:03:30]} 15. Bb3 {[%emt 0:00:30]} Bb7 {[%emt 0:00:30]} 16. Ne5 {[%emt 0:01:30]} Qb6 {[%emt 0:13:30]} 17. Rfd1 {[%emt 0:03:30]} Rac8 {[%emt 0:03:30]} 18. Bg5 {[%emt 0:00:30]} Rfd8 {[%emt 0:01:30]} 19. a3 {[%emt 0:01:30]} Nc6 {[%emt 0:06:30]} 20. Nxc6 {[%emt 0:04:30]} Bxc6 {[%emt 0:00:30]} 21. Be3 {[%emt 0:00:30]} Qb7 {[%emt 0:02:30]} 22. f3 {[%emt 0:01:30]} b4 {[%emt 0:07:30]} 23. axb4 {[%emt 0:01:30]} Bxb4 {[%emt 0:00:30]} 24. Bc4 {[%emt 0:00:30]} Bxf3 {[%emt 0:08:30]} 25. gxf3 {[%emt 0:00:30]} Rxc4 {[%emt 0:00:00]} 26. Qe2 {[%emt 0:01:30]} Rc7 {[%emt 0:04:00]} 27. Na4 Rcd7 28. Rc4 Qb5 29. Qc2 Nd5 30. Bf2 Bd6 31. Rc8 Nf4 32. Bg3 Ne2+ 33. Kf2 Nxg3 34. hxg3 g6 35. Rxd8+ Rxd8 36. Nc3 Qc4 37. Qe4 Bb4 38. Ne2 Qb3 39. Rh1 1-0

[Event "8th Mersin Open 2024"]
[Site "Mersin"]
[Date "2024.11.12"]
[Round "4"]
[White "Lobanov, Sergei"]
[Black "Jinan Jomon"]
[Result "1-0"]
[ECO "E49"]
[WhiteElo "2503"]
[BlackElo "2342"]
[Annotator "TA"]
[PlyCount "67"]
[EventDate "2024.11.10"]
[EventType "swiss"]
[EventCountry "TUR"]
[SourceTitle "playchess.com"]
[Source "ChessBase"]
[SourceQuality "1"]
[TimeControl "5400+30"]

{[%evp 18,67,0,0,0,0,11,0,29,33,63,54,99,91,106,116,116,113,147,106,137,114,146,109,182,108,250,239,248,244,312,239,656,406,392,393,610,604,570,563,1348,1306,1258,1280,1464,1299,29973,29973,5314,2087,1155,711]} 1. d4 {[%emt 0:01:00]} Nf6 {[%emt 0:01:00]} 2. c4 {[%emt 0:00:30]} e6 {[%emt 0:00:30]} 3. Nc3 {[%emt 0:00:00]} Bb4 {[%emt 0:00:30]} 4. e3 {[%emt 0:00:00]} O-O {[%emt 0:00:00]} 5. Bd3 {[%emt 0:00:00]} d5 {[%emt 0:00:00]} 6. a3 {[%emt 0:00:00]} Bxc3+ {[%emt 0:00:00]} 7. bxc3 {[%emt 0:00:00]} dxc4 {[%emt 0:00:00]} 8. Bxc4 {[%emt 0:00:00]} c5 {[%emt 0:00:00]} 9. Ne2 {[%emt 0:00:30]} Qc7 {[%emt 0:00:00]} 10. Ba2 {[%emt 0:00:30]} b6 {[%emt 0:01:30]} 11. O-O {[%emt 0:00:00]} Bb7 {[%emt 0:03:30]} 12. Ng3 {[%emt 0:00:00]} Nbd7 {[%emt 0:02:30] The position is equal.} 13. Re1 {[%emt 0:00:30]} e5 {[%emt 0:15:30]} 14. d5 {[%emt 0:09:30]} Ne8 {[%emt 0:10:30]} 15. e4 {[%emt 0:00:30] White is more active.} Ndf6 {[%emt 0:02:30]} 16. c4 {[%emt 0:19:30]} Nd6 {[%emt 0:03:30]} 17. Bb2 {[%emt 0:07:30]} Qe7 {[%emt 0:09:30]} 18. Bb3 {[%emt 0:07:30]} Nd7 {[%emt 0:06:30]} 19. Qd3 {[%emt 0:00:00]} f6 {[%emt 0:06:30]} 20. Re3 {[%emt 0:06:00]} Kf7 {[%emt 0:03:30]} (20... g6 $16 21. h4 h5) 21. Rf1 {[%emt 0:07:30]} (21. Nf5 $18 Nxf5 22. exf5) 21... Ke8 {[%emt 0:01:30]} (21... g6 $16 {was worth a try.} 22. a4 Kg8) 22. Nf5 $18 {[%emt 0:00:30]} Nxf5 {[%emt 0:00:30]} 23. exf5 {[%emt 0:00:30] Threatens to win with f4.} Qd6 {[%emt 0:06:30] Black is weak on the light squares} 24. f4 {[%emt 0:00:30]} Kf7 $2 {[%emt 0:01:30] [#]} (24... Rf7 25. Ba4 Kf8) 25. Ba4 {[%emt 0:01:30]} Kg8 {[%emt 0:02:30]} 26. Bxd7 {[%emt 0:03:30]} Qxd7 {[%emt 0:00:30]} (26... e4 $142) 27. fxe5 {[%emt 0:00:30]} fxe5 {[%emt 0:01:30]} 28. Rxe5 {[%emt 0:00:00][%cal Of5f6] And now f6! would win.} Rad8 {[%emt 0:06:09] [#]} 29. f6 $1 {[%emt 0:06:00][%cal Bf5f6,Bf6g7][%mdl 544]} Rf7 {[%emt 0:05:39] Prevents Re7} 30. fxg7 {[%emt 0:01:30] Strongly threatening Rxf7.} b5 {[%emt 0:00:13][%cal Bb6b5,Bb5c4][%mdl 32]} 31. Ref5 {[%emt 0:13:45]} Rxf5 {[%emt 0:01:54]} 32. Rxf5 {[%emt 0:00:05]} Qe7 {[%emt 0:01:47]} 33. Bf6 {[%emt 0:03:32]} (33. d6 $142 Qe1+ 34. Rf1) 33... bxc4 {[%emt 0:00:13]} 34. Bxe7 {[%emt 0:00:28] White took control after the opening.   Weighted Error Value: White=0.40/Black=0.93.  Mistake:       	White=1     	Black=4      Inaccurate:     	White=1     	Black=4      OK:         	White=4     	Black=4      Best:        	White=2     	---        Brilliant:      	White=1     	---} 1-0

[Event "8th Mersin Open 2024"]
[Site "Mersin"]
[Date "2024.11.12"]
[Round "4"]
[White "Ikonnikov, Vyacheslav"]
[Black "Odeev, Handszar"]
[Result "1/2-1/2"]
[ECO "A16"]
[WhiteElo "2465"]
[BlackElo "2264"]
[Annotator "RC"]
[PlyCount "76"]
[EventDate "2024.11.10"]
[EventType "swiss"]
[EventCountry "TUR"]
[SourceTitle "playchess.com"]
[Source "ChessBase"]
[SourceQuality "1"]
[TimeControl "5400+30"]

1. Nf3 {[%emt 0:01:00]} Nf6 {[%emt 0:01:00]} 2. c4 {[%emt 0:00:00]} g6 {[%emt 0:01:30]} 3. Nc3 {[%emt 0:00:00]} d5 {[%emt 0:02:30]} 4. cxd5 {[%emt 0:01:30]} Nxd5 {[%emt 0:00:30]} 5. h4 {[%emt 0:00:00]} h6 {[%emt 0:07:30]} 6. e4 {[%emt 0:05:00]} Nxc3 {[%emt 0:02:30]} 7. bxc3 {[%emt 0:00:30]} Bg7 {[%emt 0:10:30]} 8. d4 {[%emt 0:13:30]} c5 {[%emt 0:01:30]} 9. Bb5+ {[%emt 0:00:30]} Nc6 {[%emt 0:07:30]} 10. d5 {[%emt 0:19:30]} Qa5 {[%emt 0:02:30]} 11. Rb1 {[%emt 0:00:00]} a6 {[%emt 0:04:30]} 12. Ba4 {[%emt 0:10:00]} b5 {[%emt 0:06:30]} 13. dxc6 {[%emt 0:00:30]} bxa4 {[%emt 0:05:30]} 14. Bd2 {[%emt 0:08:30]} Be6 {[%emt 0:17:30]} 15. c4 {[%emt 0:01:30]} Qc7 {[%emt 0:06:31]} 16. Qxa4 {[%emt 0:01:30]} Rc8 {[%emt 0:00:29]} 17. Ke2 {[%emt 0:06:30]} O-O {[%emt 0:03:57]} 18. Rhc1 {[%emt 0:00:00]} Qxc6 {[%emt 0:08:15]} 19. Qxc6 {[%emt 0:00:00]} Rxc6 {[%emt 0:00:00]} 20. Rb7 {[%emt 0:04:30]} Re8 {[%emt 0:00:39]} 21. a4 {[%emt 0:01:30]} Bg4 {[%emt 0:01:46]} 22. Bc3 {[%emt 0:02:30]} Re6 {[%emt 0:03:42]} 23. Bxg7 {[%emt 0:04:40]} Kxg7 {[%emt 0:00:30]} 24. Ke3 {[%emt 0:00:00]} Bf5 {[%emt 0:00:00]} 25. e5 {[%emt 0:01:20]} Bg4 {[%emt 0:00:32]} 26. Kf4 {[%emt 0:01:10]} Bxf3 {[%emt 0:00:16]} 27. gxf3 {[%emt 0:00:22]} Rd8 {[%emt 0:00:14]} 28. Re1 {[%emt 0:00:26]} Rd2 {[%emt 0:00:24]} 29. Rc7 {[%emt 0:01:10]} Ra2 {[%emt 0:04:19]} 30. Rxc5 {[%emt 0:00:47]} Rxa4 {[%emt 0:00:01]} 31. Rc7 {[%emt 0:06:31]} Ra2 {[%emt 0:00:38]} 32. Kg3 {[%emt 0:00:12]} Rc2 {[%emt 0:00:38]} 33. f4 {[%emt 0:00:24]} Rc3+ 34. f3 {[%emt 0:00:54]} f6 {[%emt 0:02:20]} 35. c5 {[%emt 0:03:00]} a5 {[%emt 0:00:28]} 36. Re4 {[%emt 0:00:17]} Rc2 {[%emt 0:00:37]} 37. Kh3 {[%emt 0:02:46]} Kf7 {[%emt 0:00:24]} 38. Kg3 {[%emt 0:00:54]} h5 {[%emt 0:00:30]} 1/2-1/2

[Event "8th Mersin Open 2024"]
[Site "Mersin"]
[Date "2024.11.12"]
[Round "4"]
[White "Annaberdiyev, Meylis"]
[Black "Bernadskiy, Vitaliy"]
[Result "1/2-1/2"]
[ECO "C02"]
[WhiteElo "2443"]
[BlackElo "2543"]
[Annotator "TA"]
[PlyCount "35"]
[EventDate "2024.11.10"]
[EventType "swiss"]
[EventCountry "TUR"]
[SourceTitle "playchess.com"]
[Source "ChessBase"]
[SourceQuality "1"]
[TimeControl "5400+30"]

{[%evp 11,35,-29,0,0,0,-3,-4,-6,0,0,0,-8,0,0,-8,-10,-10,-36,0,-21,0,-18,-48,-48,7,-64]} 1. e4 {[%emt 0:01:00]} e6 {[%emt 0:01:00]} 2. d4 {[%emt 0:01:30]} d5 {[%emt 0:00:00]} 3. e5 {[%emt 0:00:30]} c5 {[%emt 0:00:00]} 4. Nf3 {[%emt 0:00:30]} Nc6 {[%emt 0:00:00]} 5. Bd3 {[%emt 0:00:00]} cxd4 {[%emt 0:02:00]} 6. O-O {[%emt 0:00:00]} Nge7 {[%emt 0:00:30]} 7. Nbd2 {[%emt 0:00:00]} Ng6 {[%emt 0:03:30]} 8. Re1 {[%emt 0:00:00]} Bb4 {[%emt 0:02:30]} 9. a3 {[%emt 0:03:30]} Ba5 {[%emt 0:01:30]} 10. b4 {[%emt 0:00:30]} Bc7 {[%emt 0:00:30][%cal Rc6e5]} 11. Bxg6 {[%emt 0:00:30]} hxg6 {[%emt 0:01:30]} 12. b5 {[%emt 0:07:30]} Ne7 {[%emt 0:02:30]} 13. Nb3 {[%emt 0:00:30][%cal Oc1g5]} Nf5 {[%emt 0:00:30]} 14. Nbxd4 {[%emt 0:00:30]} Bb6 {[%emt 0:00:30] ...Nxd4 is the strong threat.} 15. Bg5 {[%emt 0:16:30]} Qc7 {[%emt 0:01:30]} 16. Nb3 {[%emt 0:00:30]} Bd7 {[%emt 0:00:30][%cal Oa8c8]} 17. a4 {[%emt 0:03:30]} a5 {[%emt 0:00:00]} (17... Qc4 $15) 18. g4 {[%emt 0:03:30] Weighted Error Value: White=0.05 (flawless) /Black=0.11 (very precise) .  Mistake:       	White=1     	Black=1      Inaccurate:     	White=1     	---        OK:         	White=6     	Black=6      Best:        	White=2     	---} (18. Qe2 $11) 1/2-1/2

[Event "8th Mersin Open 2024"]
[Site "Mersin"]
[Date "2024.11.12"]
[Round "4"]
[White "Yermolinsky, Alex"]
[Black "Kazimova, Narmin"]
[Result "1-0"]
[ECO "E56"]
[WhiteElo "2417"]
[BlackElo "2155"]
[Annotator "RC"]
[PlyCount "69"]
[EventDate "2024.11.10"]
[EventType "swiss"]
[EventCountry "TUR"]
[SourceTitle "playchess.com"]
[Source "ChessBase"]
[SourceQuality "1"]
[TimeControl "5400+30"]

1. Nf3 {[%emt 0:01:00]} Nf6 {[%emt 0:01:00]} 2. c4 {[%emt 0:00:00]} e6 {[%emt 0:02:30]} 3. Nc3 {[%emt 0:00:00]} d5 {[%emt 0:00:30]} 4. d4 {[%emt 0:00:30]} Bb4 {[%emt 0:00:30]} 5. e3 {[%emt 0:05:30]} O-O {[%emt 0:01:30]} 6. Bd3 {[%emt 0:00:30]} dxc4 {[%emt 0:00:30]} 7. Bxc4 {[%emt 0:00:00]} c5 {[%emt 0:00:00]} 8. O-O {[%emt 0:00:00]} Nc6 {[%emt 0:09:00]} 9. a3 {[%emt 0:06:30]} Ba5 {[%emt 0:00:30]} 10. Bd3 {[%emt 0:06:30]} Qe7 {[%emt 0:08:30]} 11. Ne4 {[%emt 0:05:30]} Nxe4 {[%emt 0:31:30]} 12. Bxe4 {[%emt 0:00:30]} f5 {[%emt 0:03:30]} 13. Bxc6 {[%emt 0:01:30]} bxc6 {[%emt 0:00:00]} 14. Bd2 {[%emt 0:00:30]} Bxd2 {[%emt 0:03:00]} 15. Qxd2 {[%emt 0:00:30]} cxd4 {[%emt 0:02:30]} 16. exd4 {[%emt 0:08:30]} c5 {[%emt 0:00:30]} 17. dxc5 {[%emt 0:00:30]} Qxc5 {[%emt 0:00:00]} 18. Rac1 {[%emt 0:00:30]} Qb6 {[%emt 0:01:00]} 19. Qd4 {[%emt 0:36:30]} Bb7 {[%emt 0:11:30]} 20. Qxb6 {[%emt 0:00:30]} axb6 {[%emt 0:00:00]} 21. Ne5 {[%emt 0:00:30]} Rfc8 {[%emt 0:02:00]} 22. f3 {[%emt 0:01:30]} b5 {[%emt 0:03:56]} 23. Kf2 {[%emt 0:02:30]} Bd5 {[%emt 0:09:52]} 24. Rfd1 {[%emt 0:02:44]} Bb3 {[%emt 0:03:27]} 25. Rxc8+ {[%emt 0:05:09]} Rxc8 {[%emt 0:00:01]} 26. Rd3 {[%emt 0:00:40]} Bd5 {[%emt 0:00:30]} 27. Rc3 {[%emt 0:00:00]} Rd8 {[%emt 0:02:15]} 28. h4 {[%emt 0:02:58]} f4 {[%emt 0:03:22]} 29. Rc5 {[%emt 0:02:11]} Bc4 {[%emt 0:00:50]} 30. Ke1 {[%emt 0:01:11]} Rb8 {[%emt 0:00:43]} 31. a4 {[%emt 0:02:09]} g6 {[%emt 0:00:04]} 32. b3 {[%emt 0:01:44]} Bxb3 {[%emt 0:01:17]} 33. Rxb5 {[%emt 0:00:30]} Rxb5 {[%emt 0:00:00]} 34. axb5 {[%emt 0:00:00]} Kg7 {[%emt 0:00:41]} 35. Nd3 {[%emt 0:01:20]} 1-0

[Event "8th Mersin Open 2024"]
[Site "Mersin"]
[Date "2024.11.12"]
[Round "4"]
[White "Cheng, Bindi"]
[Black "Pourramezan chafjiri, Parsa"]
[Result "0-1"]
[ECO "D00"]
[WhiteElo "2368"]
[BlackElo "2081"]
[Annotator "RC"]
[PlyCount "35"]
[EventDate "2024.11.10"]
[EventType "swiss"]
[EventCountry "TUR"]
[SourceTitle "playchess.com"]
[Source "ChessBase"]
[SourceQuality "1"]
[TimeControl "5400+30"]

1. d4 {[%emt 0:01:00]} Nf6 {[%emt 0:01:00]} 2. Bg5 {[%emt 0:00:00]} d5 {[%emt 0:00:30]} 3. e3 {[%emt 0:00:00]} e6 {[%emt 0:02:30]} 4. Nd2 {[%emt 0:03:30]} Be7 {[%emt 0:01:30]} 5. Bd3 {[%emt 0:00:00]} O-O {[%emt 0:01:30]} 6. c3 {[%emt 0:00:00]} c5 {[%emt 0:02:30]} 7. f4 {[%emt 0:00:30]} h6 {[%emt 0:04:30]} 8. h4 {[%emt 0:01:30]} cxd4 {[%emt 0:18:30]} 9. exd4 {[%emt 0:05:30]} b5 {[%emt 0:02:30]} 10. Bxf6 {[%emt 0:04:30]} Bxf6 {[%emt 0:01:30]} 11. Ngf3 {[%emt 0:00:00]} b4 {[%emt 0:00:30]} 12. Ng5 {[%emt 0:41:00]} bxc3 {[%emt 0:06:30]} 13. bxc3 {[%emt 0:00:30]} Qc7 {[%emt 0:01:30]} 14. Qf3 {[%emt 0:34:01]} g6 {[%emt 0:09:30]} 15. Nge4 {[%emt 0:02:40]} Bg7 {[%emt 0:02:30]} 16. h5 {[%emt 0:00:28]} Nd7 {[%emt 0:01:30]} 17. hxg6 {[%emt 0:03:03]} fxg6 {[%emt 0:01:30]} 18. Qg3 {[%emt 0:01:18]} 0-1

[Event "8th Mersin Open 2024"]
[Site "Mersin"]
[Date "2024.11.12"]
[Round "4"]
[White "Bicer, Atakan Mert"]
[Black "Shafei, Hamid"]
[Result "1-0"]
[ECO "C74"]
[WhiteElo "2342"]
[BlackElo "2018"]
[Annotator "RC"]
[PlyCount "51"]
[EventDate "2024.11.10"]
[EventType "swiss"]
[EventCountry "TUR"]
[SourceTitle "playchess.com"]
[Source "ChessBase"]
[SourceQuality "1"]
[TimeControl "5400+30"]

1. e4 {[%emt 0:01:00]} e5 {[%emt 0:04:00]} 2. Nf3 {[%emt 0:00:30]} Nc6 {[%emt 0:00:30]} 3. Bb5 {[%emt 0:00:30]} a6 {[%emt 0:00:00]} 4. Ba4 {[%emt 0:00:00]} d6 {[%emt 0:00:00]} 5. c3 {[%emt 0:00:00]} f5 {[%emt 0:01:30]} 6. exf5 {[%emt 0:00:00]} Bxf5 {[%emt 0:00:00]} 7. O-O {[%emt 0:00:00]} Bd3 {[%emt 0:01:00]} 8. Re1 {[%emt 0:00:30]} Be7 {[%emt 0:00:30]} 9. Re3 {[%emt 0:00:00]} e4 {[%emt 0:00:00]} 10. Na3 {[%emt 0:06:00]} Nh6 {[%emt 0:11:00]} 11. Ne1 {[%emt 0:17:30]} Bg5 {[%emt 0:05:30]} 12. Rh3 {[%emt 0:17:30]} b5 {[%emt 0:04:30]} 13. Nxd3 {[%emt 0:14:30]} exd3 {[%emt 0:10:30]} 14. Nxb5 {[%emt 0:00:00]} O-O {[%emt 0:00:30]} 15. Nd4 {[%emt 0:08:00]} Nxd4 {[%emt 0:03:30]} 16. cxd4 {[%emt 0:00:30]} Qf6 {[%emt 0:04:30]} 17. Qf1 {[%emt 0:10:30]} Ng4 {[%emt 0:05:30]} 18. Bc6 {[%emt 0:04:58]} Qxd4 {[%emt 0:17:30]} 19. Rxd3 {[%emt 0:09:33]} Qe5 {[%emt 0:02:30]} 20. Rg3 {[%emt 0:00:15]} Rxf2 {[%emt 0:01:30]} 21. Qd1 {[%emt 0:01:27]} Raf8 {[%emt 0:26:04]} 22. Rxg4 {[%emt 0:00:12]} Qc5 {[%emt 0:00:23]} 23. d4 {[%emt 0:01:07]} Qxc6 {[%emt 0:00:26]} 24. Qb3+ {[%emt 0:01:01]} Kh8 {[%emt 0:00:34]} 25. Bxg5 {[%emt 0:00:07]} Qd7 {[%emt 0:00:24]} 26. Rf4 {[%emt 0:01:23]} 1-0